fUSD/lending_fUSD_20260504
["ID","MTS","AMOUNT","RATE_DAILY","PERIOD"]
[421538199,1777834246000,-151.0,0.00041096,120]
[421538197,1777834246000,-523.5203139,0.00041095,120]
[421538201,1777834246000,-151.247192,0.00041096,120]
[421538202,1777834246000,-151.0,0.00041096,120]
[421538194,1777834246000,-1141.1,0.00041041,120]
[421538195,1777834246000,-177.0,0.00041041,120]
[421538200,1777834246000,-151.0,0.00041096,120]
[421538265,1777834247000,-154.42,0.00041197,120]
[421538255,1777834247000,-154.42,0.00041097,120]
[421538253,1777834247000,-635.0,0.00041096,120]
[421538251,1777834247000,-635.0,0.00041096,120]
[421538243,1777834247000,-635.0,0.00041096,120]
[421538250,1777834247000,-635.0,0.00041096,120]
[421538252,1777834247000,-635.0,0.00041096,120]
[421538249,1777834247000,-635.0,0.00041096,120]
[421538248,1777834247000,-635.0,0.00041096,120]
[421538257,1777834247000,-562.06,0.000411,30]
[421538247,1777834247000,-635.0,0.00041096,120]
[421538258,1777834247000,-616.99279657,0.000411,2]
[421538264,1777834247000,-500.0,0.00041178,120]
[421538254,1777834247000,-652.1268044,0.00041096,120]
[421538256,1777834247000,-3108.83,0.000411,14]
[421538260,1777834247000,-151.51439394,0.00041134,120]
[421538259,1777834247000,-277.09738115,0.00041134,120]
[421538261,1777834247000,-338.87,0.00041163,30]
[421538262,1777834247000,-150.0,0.00041168,7]
[421538263,1777834247000,-1200.0,0.00041178,120]
[421538245,1777834247000,-635.0,0.00041096,120]
[421538267,1777834247000,-8074.88107148,0.0004126,7]
[421538270,1777834247000,-157.4281397,0.00041337,5]
[421538271,1777834247000,-250.0,0.00041379,93]
[421538269,1777834247000,-437.24,0.00041315,30]
[421538266,1777834247000,-7152.63422041,0.00041234,31]
[421538246,1777834247000,-635.0,0.00041096,120]
[421538236,1777834247000,-635.0,0.00041096,120]
[421538242,1777834247000,-635.0,0.00041096,120]
[421538272,1777834247000,-154.42,0.00041397,120]
[421538217,1777834247000,-151.0,0.00041096,120]
[421538218,1777834247000,-151.0,0.00041096,120]
[421538219,1777834247000,-151.0,0.00041096,120]
[421538220,1777834247000,-151.0,0.00041096,120]
[421538221,1777834247000,-266.041438,0.00041096,120]
[421538222,1777834247000,-151.0,0.00041096,120]
[421538223,1777834247000,-151.0,0.00041096,120]
[421538225,1777834247000,-151.0,0.00041096,120]
[421538227,1777834247000,-151.0,0.00041096,120]
[421538229,1777834247000,-151.0,0.00041096,120]
[421538226,1777834247000,-151.0,0.00041096,120]
[421538224,1777834247000,-151.0,0.00041096,120]
[421538228,1777834247000,-151.0,0.00041096,120]
[421538231,1777834247000,-635.0,0.00041096,120]
[421538241,1777834247000,-635.0,0.00041096,120]
[421538230,1777834247000,-301.945239,0.00041096,120]
[421538233,1777834247000,-635.0,0.00041096,120]
[421538234,1777834247000,-635.0,0.00041096,120]
[421538232,1777834247000,-635.0,0.00041096,120]
[421538235,1777834247000,-635.0,0.00041096,120]
[421538237,1777834247000,-635.0,0.00041096,120]
[421538238,1777834247000,-635.0,0.00041096,120]
[421538240,1777834247000,-635.0,0.00041096,120]
[421538239,1777834247000,-635.0,0.00041096,120]
[421538244,1777834247000,-635.0,0.00041096,120]
[421538273,1777834247000,-3108.83,0.000414,14]
[421538318,1777834247000,-1225.448,0.00041726,120]
[421538275,1777834247000,-154.42,0.00041497,120]
[421538310,1777834247000,-150.0,0.00041722,2]
[421538306,1777834247000,-13436.6,0.000417,7]
[421538307,1777834247000,-884.94681774,0.000417,2]
[421538308,1777834247000,-150.0,0.00041722,2]
[421538309,1777834247000,-150.0,0.00041722,2]
[421538303,1777834247000,-300.0,0.00041699,120]
[421538311,1777834247000,-1200.0,0.00041726,120]
[421538312,1777834247000,-1225.448,0.00041726,120]
[421538314,1777834247000,-1225.448,0.00041726,120]
[421538313,1777834247000,-1225.448,0.00041726,120]
[421538315,1777834247000,-1225.448,0.00041726,120]
[421538324,1777834247000,-1225.448,0.00041726,120]
[421538316,1777834247000,-1225.448,0.00041726,120]
[421538319,1777834247000,-1225.448,0.00041726,120]
[421538320,1777834247000,-1225.448,0.00041726,120]
[421538317,1777834247000,-1225.448,0.00041726,120]
[421538268,1777834247000,-154.42,0.00041297,120]
[421538323,1777834247000,-1225.448,0.00041726,120]
[421538322,1777834247000,-1225.448,0.00041726,120]
[421538326,1777834247000,-1225.448,0.00041726,120]
[421538325,1777834247000,-1225.448,0.00041726,120]
[421538328,1777834247000,-1225.448,0.00041726,120]
[421538330,1777834247000,-1225.448,0.00041726,120]
[421538327,1777834247000,-1225.448,0.00041726,120]
[421538329,1777834247000,-1225.448,0.00041726,120]
[421538305,1777834247000,-3108.83,0.000417,14]
[421538304,1777834247000,-818.5,0.000417,30]
[421538321,1777834247000,-1225.448,0.00041726,120]
[421538297,1777834247000,-996.66000024,0.00041643,31]
[421538274,1777834247000,-600.0,0.0004147,3]
[421538302,1777834247000,-154.42,0.00041697,120]
[421538277,1777834247000,-209.5,0.000415,30]
[421538276,1777834247000,-619.80545437,0.000415,120]
[421538279,1777834247000,-150.0,0.00041523,2]
[421538281,1777834247000,-150.0,0.00041523,2]
[421538280,1777834247000,-6543.57440243,0.00041523,2]
[421538282,1777834247000,-7134.07993925,0.00041523,2]
[421538284,1777834247000,-280.92590593,0.00041523,2]
[421538283,1777834247000,-150.0,0.00041523,2]
[421538286,1777834247000,-291.57,0.00041584,120]
[421538289,1777834247000,-15000.0,0.000416,30]
[421538287,1777834247000,-300.0,0.00041589,120]
[421538278,1777834247000,-3108.83,0.000415,14]
[421538294,1777834247000,-500.1,0.00041643,31]
[421538290,1777834247000,-818.5,0.000416,30]
[421538285,1777834247000,-299.77,0.00041584,120]
[421538292,1777834247000,-956.49,0.0004163,2]
[421538291,1777834247000,-157.4281397,0.00041611,5]
[421538293,1777834247000,-6508.26841699,0.00041643,70]
[421538298,1777834247000,-159.52,0.00041665,120]
[421538301,1777834247000,-1141.1,0.00041694,120]
[421538295,1777834247000,-503.63999976,0.00041643,31]
[421538299,1777834247000,-182.71,0.00041665,120]
[421538296,1777834247000,-500.1,0.00041643,31]
[421538300,1777834247000,-291.56,0.00041665,120]
[421538288,1777834247000,-154.42,0.00041597,120]
[421538357,1777834248000,-635.76,0.000418,30]
[421538368,1777834248000,-150.0,0.00041886,30]
[421538355,1777834248000,-192150.55242614,0.000418,50]
[421538352,1777834248000,-154.42,0.00041797,120]
[421538351,1777834248000,-250.0,0.00041739,103]
[421538353,1777834248000,-666.0,0.00041799,30]
[421538356,1777834248000,-294.47,0.000418,15]
[421538354,1777834248000,-24789.000001,0.000418,60]
[421538363,1777834248000,-157.4281397,0.00041885,5]
[421538362,1777834248000,-161.0,0.0004188,120]
[421538359,1777834248000,-138863.2801588,0.00041828,120]
[421538364,1777834248000,-150.0,0.00041886,30]
[421538365,1777834248000,-1523.3936006,0.00041886,30]
[421538366,1777834248000,-150.0,0.00041886,30]
[421538369,1777834248000,-275.17907161,0.00041886,30]
[421538367,1777834248000,-6088.0933811,0.00041886,30]
[421538350,1777834248000,-612.41794799,0.00041726,120]
[421538361,1777834248000,-833.01012247,0.00041874,120]
[421538349,1777834248000,-500.0,0.00041726,120]
[421538336,1777834248000,-500.0,0.00041726,120]
[421538358,1777834248000,-572.00319873,0.00041804,120]
[421538360,1777834248000,-300.0,0.00041863,120]
[421538332,1777834248000,-500.0,0.00041726,120]
[421538331,1777834248000,-1225.44863002,0.00041726,120]
[421538335,1777834248000,-500.0,0.00041726,120]
[421538333,1777834248000,-500.0,0.00041726,120]
[421538334,1777834248000,-500.0,0.00041726,120]
[421538338,1777834248000,-310.20542133,0.00041726,120]
[421538344,1777834248000,-500.0,0.00041726,120]
[421538337,1777834248000,-500.0,0.00041726,120]
[421538341,1777834248000,-500.0,0.00041726,120]
[421538339,1777834248000,-500.0,0.00041726,120]
[421538340,1777834248000,-500.0,0.00041726,120]
[421538343,1777834248000,-500.0,0.00041726,120]
[421538345,1777834248000,-500.0,0.00041726,120]
[421538342,1777834248000,-500.0,0.00041726,120]
[421538346,1777834248000,-500.0,0.00041726,120]
[421538348,1777834248000,-500.0,0.00041726,120]
[421538347,1777834248000,-500.0,0.00041726,120]
[421538370,1777834248000,-1000.0,0.0004189,120]
[421538399,1777834248000,-100000.0,0.00042,11]
[421538372,1777834248000,-1000.0,0.0004189,120]
[421538393,1777834248000,-10000.0,0.00042,60]
[421538395,1777834248000,-10000.0,0.00042,120]
[421538401,1777834248000,-500.0,0.00042,2]
[421538404,1777834248000,-100000.0,0.00042,10]
[421538405,1777834248000,-100000.0,0.00042,9]
[421538397,1777834248000,-161.0,0.00042,120]
[421538398,1777834248000,-1292.15317443,0.00042,120]
[421538400,1777834248000,-100000.0,0.00042,12]
[421538402,1777834248000,-32090.41830001,0.00042,2]
[421538403,1777834248000,-29889.29877964,0.00042,8]
[421538406,1777834248000,-5955.22949805,0.00042,120]
[421538409,1777834248000,-355.6873997,0.00042,120]
[421538407,1777834248000,-820.45155825,0.00042,120]
[421538408,1777834248000,-2361.7007125,0.00042,120]
[421538410,1777834248000,-506.9308315,0.00042,120]
[421538411,1777834248000,-1201.77957976,0.00042,30]
[421538371,1777834248000,-1000.0,0.0004189,120]
[421538388,1777834248000,-154.42,0.00041997,120]
[421538390,1777834248000,-14143.6187588,0.00042,2]
[421538396,1777834248000,-2521.43326108,0.00042,120]
[421538394,1777834248000,-10000.0,0.00042,90]
[421538373,1777834248000,-534.89927108,0.00041895,60]
[421538374,1777834248000,-154.42,0.00041897,120]
[421538379,1777834248000,-250.0,0.000419,113]
[421538376,1777834248000,-709.58,0.000419,120]
[421538375,1777834248000,-47478.44092503,0.00041897,120]
[421538378,1777834248000,-9112.90483262,0.000419,2]
[421538382,1777834248000,-400.0,0.0004197,3]
[421538381,1777834248000,-300.0,0.00041918,120]
[421538380,1777834248000,-300.0,0.00041918,120]
[421538383,1777834248000,-300.0,0.00041973,120]
[421538385,1777834248000,-250.0,0.00041973,120]
[421538386,1777834248000,-250.0,0.00041973,120]
[421538392,1777834248000,-10000.0,0.00042,30]
[421538384,1777834248000,-404.0,0.00041973,120]
[421538391,1777834248000,-10000.0,0.00042,120]
[421538389,1777834248000,-1000.0,0.00041999,120]
[421538377,1777834248000,-818.5,0.000419,30]
[421538387,1777834248000,-10000.0,0.00041976,120]
[421538412,1777834297000,187.08090475,0.0001,2]
[421538413,1777834298000,193.0,0.0001438,120]
[421538414,1777834298000,300.0,0.0001438,120]
[421538417,1777834298000,300.0,0.00029911,120]
[421538416,1777834298000,300.0,0.00029911,120]
[421538418,1777834298000,300.0,0.00029911,120]
[421538415,1777834298000,300.0,0.0001378,120]
[421538419,1777834320000,766.86333668,0.0001,2]
[421538422,1777834442000,380.0,0.00030137,120]
[421538423,1777834469000,170.0,0.00030137,120]
[421538426,1777834553000,-124.25781109,0.00014498,2]
[421538434,1777834703000,-175.74218891,0.00014498,2]
[421538435,1777834704000,-175.74218891,0.00014949,2]
[421538437,1777834705000,-101.48437782,0.00014998,2]
[421538436,1777834705000,-74.25781109,0.00014949,2]
[421538439,1777834705000,-175.74218891,0.00014998,2]
[421538438,1777834705000,-175.74218891,0.00014998,2]
[421538442,1777834858000,-47.03124436,0.00014998,2]
[421538444,1777834886000,894.97,0.00029871,120]
[421538443,1777834886000,894.97,0.00026884,120]
[421538449,1777835153000,-675.23,0.00014996,2]
[421538450,1777835164000,-300.0,0.00014997,2]
[421538452,1777835200000,-300.0,0.00014998,2]
[421538451,1777835200000,-1200.0,0.00014997,2]
[421538454,1777835200000,-159.87185536,0.00014998,2]
[421538457,1777835200000,-500.0,0.00014998,2]
[421538455,1777835200000,-240.12814464,0.00014998,2]
[421538458,1777835200000,-440.12814464,0.00014998,2]
[421538453,1777835200000,-500.0,0.00014998,2]
[421538456,1777835200000,-259.87185536,0.00014998,2]
[421538459,1777835218000,-59.87185536,0.00014998,2]
[421538462,1777835230000,-500.0,0.00014999,2]
[421538463,1777835251000,163.9,0.00011111,2]
[421538465,1777835370000,-163.9,0.00012699,2]
[421538466,1777835383000,166.66,0.00022127,30]
[421538525,1777835432000,-587.0,0.00017965,2]
[421538536,1777835432000,-166.66,0.00020862,2]
[421538526,1777835432000,-2037.19,0.00018856,2]
[421538527,1777835432000,-668.89,0.00018856,2]
[421538530,1777835432000,-163.9,0.00019048,2]
[421538531,1777835432000,-500.0,0.000192,7]
[421538528,1777835432000,-1406.0,0.00018856,2]
[421538529,1777835432000,-459.92,0.00018856,2]
[421538532,1777835432000,-823.0,0.00019662,2]
[421538535,1777835432000,-163.9,0.00020635,2]
[421538547,1777835432000,-5318.16,0.000212,2]
[421538537,1777835432000,-1000.0,0.00020927,2]
[421538533,1777835432000,-166.66,0.00020019,2]
[421538520,1777835432000,-163.9,0.00017461,2]
[421538539,1777835432000,-500.0,0.00020999,2]
[421538541,1777835432000,-500.0,0.00020999,2]
[421538538,1777835432000,-225.1,0.00020963,2]
[421538542,1777835432000,-500.0,0.00020999,2]
[421538540,1777835432000,-500.0,0.00020999,2]
[421538543,1777835432000,-500.0,0.00021003,2]
[421538549,1777835432000,-183.58,0.00021299,2]
[421538534,1777835432000,-166.66,0.00020441,2]
[421538523,1777835432000,-302.0,0.00017616,2]
[421538510,1777835432000,-300.0,0.00016497,2]
[421538514,1777835432000,-250.0,0.00016498,2]
[421538476,1777835432000,-163.9,0.00014286,2]
[421538478,1777835432000,-300.0,0.00014998,2]
[421538479,1777835432000,-1200.0,0.00014998,2]
[421538477,1777835432000,-300.0,0.00014998,2]
[421538480,1777835432000,-250.0,0.00014999,2]
[421538481,1777835432000,-500.0,0.00014999,2]
[421538482,1777835432000,-500.0,0.00014999,2]
[421538494,1777835432000,-300.0,0.00015281,2]
[421538484,1777835432000,-500.0,0.00014999,2]
[421538486,1777835432000,-675.23,0.00014999,2]
[421538488,1777835432000,-675.23,0.00014999,2]
[421538490,1777835432000,-339.17929851,0.00014999,2]
[421538492,1777835432000,-300.0,0.00015281,2]
[421538508,1777835432000,-250.0,0.00016496,2]
[421538504,1777835432000,-550.0,0.00016495,2]
[421538498,1777835432000,-426.46099227,0.0001637,3]
[421538496,1777835432000,-163.9,0.00015873,2]
[421538506,1777835432000,-230.67835575,0.00016496,2]
[421538502,1777835432000,-420.0,0.00016415,2]
[421538500,1777835432000,-278.0,0.00016415,2]
[421538512,1777835432000,-300.0,0.00016498,2]
[421538517,1777835432000,-250.0,0.00016779,2]
[421538544,1777835432000,-20907.93,0.00021042,2]
[421538557,1777835432000,-435.75,0.000219,2]
[421538548,1777835432000,-166.66,0.00021284,2]
[421538579,1777835432000,-275.63,0.00024658,2]
[421538577,1777835432000,-9464.7,0.00023836,2]
[421538578,1777835432000,-894.97,0.00023897,2]
[421538575,1777835432000,-275.0,0.00023551,2]
[421538576,1777835432000,-4534.52,0.00023691,2]
[421538580,1777835432000,-162.45035992,0.00024741,2]
[421538583,1777835432000,-150.0,0.00025758,2]
[421538581,1777835432000,-1263.79739359,0.00025449,2]
[421538584,1777835432000,-9999.99,0.00025786,2]
[421538582,1777835432000,-152.37,0.00025758,2]
[421538585,1777835432000,-222.3572,0.00026492,2]
[421538586,1777835432000,-5114.0736,0.00026492,2]
[421538590,1777835432000,-308.23,0.00026581,3]
[421538588,1777835432000,-3222.75381741,0.00026492,2]
[421538589,1777835432000,-500.0,0.00026573,2]
[421538591,1777835432000,-154.12,0.00026581,3]
[421538592,1777835432000,-462.37,0.00026581,3]
[421538593,1777835432000,-278.24491141,0.00026589,2]
[421538594,1777835432000,-500.0,0.0002659,2]
[421538595,1777835432000,-500.0,0.0002659,2]
[421538546,1777835432000,-3251.13,0.00021182,2]
[421538574,1777835432000,-265.54,0.00023368,2]
[421538573,1777835432000,-3251.13,0.000233,2]
[421538587,1777835432000,-934.3645,0.00026492,2]
[421538571,1777835432000,-5000.0,0.00022903,2]
[421538545,1777835432000,-718.63,0.0002105,2]
[421538572,1777835432000,-1000.0,0.000232,7]
[421538551,1777835432000,-172.23,0.00021661,2]
[421538550,1777835432000,-1152.0,0.00021518,2]
[421538552,1777835432000,-166.66,0.00021705,2]
[421538554,1777835432000,-1852.42,0.00021717,2]
[421538555,1777835432000,-500.0,0.00021862,2]
[421538556,1777835432000,-250.0,0.00021881,2]
[421538561,1777835432000,-300.0,0.000222,2]
[421538558,1777835432000,-448.58,0.000219,2]
[421538553,1777835432000,-3251.13,0.00021711,2]
[421538559,1777835432000,-150.0,0.000219,2]
[421538563,1777835432000,-3251.13,0.00022241,2]
[421538564,1777835432000,-300.0,0.000225,2]
[421538562,1777835432000,-163.9,0.00022223,2]
[421538568,1777835432000,-396.48,0.00022562,2]
[421538566,1777835432000,-576.63,0.00022562,2]
[421538565,1777835432000,-1756.2,0.00022562,2]
[421538567,1777835432000,-1212.07,0.00022562,2]
[421538560,1777835432000,-200.0,0.00022196,2]
[421538570,1777835432000,-300.0,0.000228,2]
[421538569,1777835432000,-3251.13,0.0002277,2]
[421538626,1777835433000,-500.0,0.0002659,2]
[421538638,1777835433000,-500.0,0.0002659,2]
[421538639,1777835433000,-500.0,0.0002659,2]
[421538634,1777835433000,-500.0,0.0002659,2]
[421538633,1777835433000,-500.0,0.0002659,2]
[421538631,1777835433000,-500.0,0.0002659,2]
[421538628,1777835433000,-500.0,0.0002659,2]
[421538632,1777835433000,-500.0,0.0002659,2]
[421538629,1777835433000,-500.0,0.0002659,2]
[421538635,1777835433000,-500.0,0.0002659,2]
[421538630,1777835433000,-500.0,0.0002659,2]
[421538636,1777835433000,-500.0,0.0002659,2]
[421538647,1777835433000,-500.0,0.0002659,2]
[421538641,1777835433000,-500.0,0.0002659,2]
[421538640,1777835433000,-500.0,0.0002659,2]
[421538642,1777835433000,-500.0,0.0002659,2]
[421538643,1777835433000,-500.0,0.0002659,2]
[421538645,1777835433000,-500.0,0.0002659,2]
[421538644,1777835433000,-500.0,0.0002659,2]
[421538646,1777835433000,-500.0,0.0002659,2]
[421538650,1777835433000,-500.0,0.0002659,2]
[421538651,1777835433000,-582.18266109,0.0002659,2]
[421538648,1777835433000,-500.0,0.0002659,2]
[421538649,1777835433000,-500.0,0.0002659,2]
[421538625,1777835433000,-500.0,0.0002659,2]
[421538637,1777835433000,-500.0,0.0002659,2]
[421538627,1777835433000,-500.0,0.0002659,2]
[421538652,1777835433000,-500.0,0.0002659,2]
[421538622,1777835433000,-500.0,0.0002659,2]
[421538596,1777835433000,-500.0,0.0002659,2]
[421538597,1777835433000,-500.0,0.0002659,2]
[421538598,1777835433000,-500.0,0.0002659,2]
[421538599,1777835433000,-500.0,0.0002659,2]
[421538601,1777835433000,-500.0,0.0002659,2]
[421538600,1777835433000,-250.0,0.0002659,2]
[421538603,1777835433000,-500.0,0.0002659,2]
[421538604,1777835433000,-500.0,0.0002659,2]
[421538605,1777835433000,-500.0,0.0002659,2]
[421538607,1777835433000,-500.0,0.0002659,2]
[421538608,1777835433000,-500.0,0.0002659,2]
[421538609,1777835433000,-500.0,0.0002659,2]
[421538612,1777835433000,-500.0,0.0002659,2]
[421538611,1777835433000,-500.0,0.0002659,2]
[421538610,1777835433000,-500.0,0.0002659,2]
[421538613,1777835433000,-500.0,0.0002659,2]
[421538615,1777835433000,-500.0,0.0002659,2]
[421538614,1777835433000,-500.0,0.0002659,2]
[421538621,1777835433000,-500.0,0.0002659,2]
[421538617,1777835433000,-500.0,0.0002659,2]
[421538620,1777835433000,-500.0,0.0002659,2]
[421538616,1777835433000,-250.0,0.0002659,2]
[421538619,1777835433000,-500.0,0.0002659,2]
[421538618,1777835433000,-500.0,0.0002659,2]
[421538623,1777835433000,-500.0,0.0002659,2]
[421538624,1777835433000,-500.0,0.0002659,2]
[421538653,1777835433000,-500.0,0.0002659,2]
[421538602,1777835433000,-500.0,0.0002659,2]
[421538655,1777835433000,-500.0,0.0002659,2]
[421538685,1777835433000,-500.0,0.0002659,2]
[421538689,1777835433000,-500.0,0.0002659,2]
[421538688,1777835433000,-500.0,0.0002659,2]
[421538687,1777835433000,-500.0,0.0002659,2]
[421538690,1777835433000,-500.0,0.0002659,2]
[421538691,1777835433000,-500.0,0.0002659,2]
[421538695,1777835433000,-646.44161402,0.0002659,2]
[421538694,1777835433000,-500.0,0.0002659,2]
[421538692,1777835433000,-500.0,0.0002659,2]
[421538693,1777835433000,-500.0,0.0002659,2]
[421538696,1777835433000,-500.0,0.0002659,2]
[421538698,1777835433000,-500.0,0.0002659,2]
[421538686,1777835433000,-500.0,0.0002659,2]
[421538697,1777835433000,-500.0,0.0002659,2]
[421538699,1777835433000,-500.0,0.0002659,2]
[421538701,1777835433000,-500.0,0.0002659,2]
[421538702,1777835433000,-500.0,0.0002659,2]
[421538703,1777835433000,-500.0,0.0002659,2]
[421538704,1777835433000,-500.0,0.0002659,2]
[421538706,1777835433000,-500.0,0.0002659,2]
[421538705,1777835433000,-500.0,0.0002659,2]
[421538707,1777835433000,-500.0,0.0002659,2]
[421538709,1777835433000,-500.0,0.0002659,2]
[421538708,1777835433000,-500.0,0.0002659,2]
[421538710,1777835433000,-500.0,0.0002659,2]
[421538656,1777835433000,-500.0,0.0002659,2]
[421538700,1777835433000,-500.0,0.0002659,2]
[421538681,1777835433000,-500.0,0.0002659,2]
[421538606,1777835433000,-500.0,0.0002659,2]
[421538683,1777835433000,-500.0,0.0002659,2]
[421538684,1777835433000,-500.0,0.0002659,2]
[421538662,1777835433000,-500.0,0.0002659,2]
[421538657,1777835433000,-500.0,0.0002659,2]
[421538660,1777835433000,-500.0,0.0002659,2]
[421538661,1777835433000,-500.0,0.0002659,2]
[421538659,1777835433000,-500.0,0.0002659,2]
[421538663,1777835433000,-500.0,0.0002659,2]
[421538666,1777835433000,-500.0,0.0002659,2]
[421538667,1777835433000,-500.0,0.0002659,2]
[421538664,1777835433000,-500.0,0.0002659,2]
[421538654,1777835433000,-500.0,0.0002659,2]
[421538665,1777835433000,-500.0,0.0002659,2]
[421538669,1777835433000,-500.0,0.0002659,2]
[421538658,1777835433000,-650.0,0.0002659,2]
[421538670,1777835433000,-500.0,0.0002659,2]
[421538668,1777835433000,-500.0,0.0002659,2]
[421538682,1777835433000,-500.0,0.0002659,2]
[421538677,1777835433000,-500.0,0.0002659,2]
[421538680,1777835433000,-500.0,0.0002659,2]
[421538679,1777835433000,-500.0,0.0002659,2]
[421538678,1777835433000,-500.0,0.0002659,2]
[421538674,1777835433000,-500.0,0.0002659,2]
[421538675,1777835433000,-500.0,0.0002659,2]
[421538673,1777835433000,-500.0,0.0002659,2]
[421538671,1777835433000,-500.0,0.0002659,2]
[421538672,1777835433000,-464.41614029,0.0002659,2]
[421538676,1777835433000,-500.0,0.0002659,2]
[421538716,1777835434000,-500.0,0.0002659,2]
[421538713,1777835434000,-415.53561889,0.0002659,2]
[421538712,1777835434000,-500.0,0.0002659,2]
[421538711,1777835434000,-500.0,0.0002659,2]
[421538715,1777835434000,-500.0,0.0002659,2]
[421538714,1777835434000,-500.0,0.0002659,2]
[421538717,1777835434000,-500.0,0.0002659,2]
[421538723,1777835434000,-9999.99,0.00026591,2]
[421538718,1777835434000,-675.23,0.00026591,2]
[421538722,1777835434000,-150.99,0.00026591,2]
[421538720,1777835434000,-29660.72,0.00026591,2]
[421538724,1777835434000,-7025.49,0.00026591,20]
[421538721,1777835434000,-3865.56,0.00026591,2]
[421538725,1777835434000,-2607.92552771,0.00026591,2]
[421538719,1777835434000,-2421.97,0.00026591,2]
[421538732,1777835437000,-299.99,0.00026591,12]
[421538731,1777835437000,-1791.23,0.00026591,10]
[421538733,1777835437000,-352.35,0.00026591,2]
[421538734,1777835437000,-9999.99,0.00026591,2]
[421538730,1777835437000,-7392.06447229,0.00026591,2]
[421538737,1777835437000,-707.64,0.00026591,2]
[421538735,1777835437000,-313.84,0.00026591,2]
[421538738,1777835437000,-499.99,0.00026591,2]
[421538740,1777835437000,-999.99,0.00026591,2]
[421538736,1777835437000,-20122.33,0.00026591,2]
[421538739,1777835437000,-9511.3,0.00026591,2]
[421538742,1777835438000,-150.0,0.00026827,4]
[421538743,1777835438000,-150.0,0.00026827,4]
[421538741,1777835438000,-150.0,0.00026827,7]
[421538745,1777835438000,-150.0,0.00026827,4]
[421538744,1777835438000,-150.0,0.00026827,4]
[421538748,1777835438000,-520.0,0.00027137,2]
[421538747,1777835438000,-500.0,0.00027121,2]
[421538749,1777835438000,-34521.09020252,0.00027367,2]
[421538750,1777835438000,-10922.96637188,0.00027367,2]
[421538751,1777835438000,-483.07196433,0.00027367,2]
[421538746,1777835438000,-1500.0,0.000271,7]
[421538790,1777835440000,-500.0,0.0002981,60]
[421538772,1777835440000,-160.49845719,0.00029808,7]
[421538775,1777835440000,-500.0,0.00029809,2]
[421538777,1777835440000,-180.17429371,0.00029809,2]
[421538776,1777835440000,-285.46083606,0.00029809,2]
[421538774,1777835440000,-171.9172511,0.00029809,2]
[421538778,1777835440000,-161.69808994,0.00029809,2]
[421538780,1777835440000,-500.0,0.00029809,2]
[421538781,1777835440000,-500.0,0.00029809,2]
[421538782,1777835440000,-539.59281481,0.00029809,2]
[421538783,1777835440000,-304.58088265,0.00029809,2]
[421538784,1777835440000,-500.0,0.00029809,2]
[421538791,1777835440000,-500.0,0.0002981,60]
[421538773,1777835440000,-154.60966813,0.00029808,7]